Workbook

Sheet Berechnung
A1: 1 | B1: =IF(A1=0,"Datenanzeige nach Aperturfläche aktiv ","Datenanzeige nach Bruttofläche aktiv ") -> Datenanzeige nach Bruttofläche aktiv | O1: 0 | S1: Solartirol Tool (für Kollektorvergleich mit Kollektordaten aus Prüfberichten) | AF1: Version 17
A2: =IF(A1=0,"eingestellte Aperturfläche > ","eingestellte Bruttofläche > ") -> eingestellte Bruttofläche > | E2: 18 | H2: Str. (W/m²) | I2: Gesamtleistung nach eingetr. Strahlung und Diff. der ges. einget. Modulfl. (in kW) | R2: Gesamtleistung nach eingetr. Strahlung und Diff. der ges. einget. Modulfl. (in kW) | AA2: Gesamtleistung nach eingetr. Strahlung und Diff. der ges. einget. Modulfl. (in kW)
A3: Absorberanteil (%) | B3: =IF(AND(B4>0,B5>0),B5/(B4/100),"") -> 54.57725948 | C3: =IF(AND(C4>0,C5>0),C5/(C4/100),"") -> 94.17085427 | D3: 91.57175399 | E3: 86.77804296 | I3: =$B$6 -> Felzen VRK | J3: Wirk.(%) | K3: =$C$6 -> Synox FK | L3: Wirk.(%) | M3: =$D$6 -> CPC40VRK | N3: Wirk.(%) | O3: =$E$6 -> Hewalex FK | P3: Wirk.(%) | R3: =$B$6 -> Felzen VRK | S3: Wirk.(%) | T3: =$C$6 -> Synox FK | U3: Wirk.(%) | V3: =$D$6 -> CPC40VRK | W3: Wirk.(%) | X3: =$E$6 -> Hewalex FK | Y3: Wirk.(%) | AA3: =$B$6 -> Felzen VRK | AB3: Wirk.(%) | AC3: =$C$6 -> Synox FK | AD3: Wirk.(%) | AE3: =$D$6 -> CPC40VRK | AF3: Wirk.(%) | AG3: =$E$6 -> Hewalex FK | AH3: Wirk.(%)
A4: Modulfl. (Br. m²) | B4: 1.715 | C4: 1.99 | D4: 4.39 | E4: 2.095 | F4: =COUNT(B4:E4) -> 4 | H4: 100 | I4: =IF($A$1>0,(H4*(J4)/100000)*$E$2,(H4*(J4)/100000)*$E$2) -> 0.1236829854 | J4: =IF($A$1>0,I67,J67) -> 6.871276968 | K4: =IF($A$1>0,(H4*(L4)/100000)*$E$2,(H4*(L4)/100000)*$E$2) -> -0.6641305327 | L4: =IF($A$1>0,K67,L67) -> -36.8961407 | M4: =IF($A$1>0,(H4*(N4)/100000)*$E$2,(H4*(N4)/100000)*$E$2) -> 0.6553607289 | N4: =IF($A$1>0,M67,N67) -> 36.40892938 | O4: =IF($A$1>0,(H4*(P4)/100000)*$E$2,(H4*(P4)/100000)*$E$2) -> -0.6221465012 | P4: =IF($A$1>0,O67,P67) -> -34.56369451 | R4: =IF($A$1>0,(H4*(S4)/100000)*$E$2,(H4*(S4)/100000)*$E$2) -> -0.140678344 | S4: =IF($A$1>0,R67,S67) -> -7.815463557 | T4: =IF($A$1>0,(H4*(U4)/100000)*$E$2,(H4*(U4)/100000)*$E$2) -> -1.414031879 | U4: =IF($A$1>0,T67,U67) -> -78.55732663 | V4: =IF($A$1>0,(H4*(W4)/100000)*$E$2,(H4*(W4)/100000)*$E$2) -> 0.4958061048 | W4: =IF($A$1>0,V67,W67) -> 27.5447836 | X4: =IF($A$1>0,(H4*(Y4)/100000)*$E$2,(H4*(Y4)/100000)*$E$2) -> -1.288966339 | Y4: =IF($A$1>0,X67,Y67) -> -71.60924105 | AA4: =IF($A$1>0,(H4*(AB4)/100000)*$E$2,(H4*(AB4)/100000)*$E$2) -> -0.4376550437 | AB4: =IF($A$1>0,AA67,AB67) -> -24.3141691 | AC4: =IF($A$1>0,(H4*(AD4)/100000)*$E$2,(H4*(AD4)/100000)*$E$2) -> -2.201902915 | AD4: =IF($A$1>0,AC67,AD67) -> -122.3279397 | AE4: =IF($A$1>0,(H4*(AF4)/100000)*$E$2,(H4*(AF4)/100000)*$E$2) -> 0.3230651481 | AF4: =IF($A$1>0,AE67,AF67) -> 17.94806378 | AG4: =IF($A$1>0,(H4*(AH4)/100000)*$E$2,(H4*(AH4)/100000)*$E$2) -> -1.976717041 | AH4: =IF($A$1>0,AG67,AH67) -> -109.8176134
A5: Absorberfläche (m²) | B5: 0.936 | C5: 1.874 | D5: 4.02 | E5: 1.818 | F5: =COUNT(B5:E5) -> 4 | H5: 200 | I5: =IF($A$1>0,(H5*(J5)/100000)*$E$2,(H5*(J5)/100000)*$E$2) -> 0.8447577376 | J5: =IF($A$1>0,I68,J68) -> 23.46549271 | K5: 0.6936248442 | L5: =IF($A$1>0,K68,L68) -> 19.26735678 | M5: 1.710267335 | N5: =IF($A$1>0,M68,N68) -> 47.50742597 | O5: 0.630581327 | P5: =IF($A$1>0,O68,P68) -> 17.51614797 | R5: 0.5803964082 | S5: =IF($A$1>0,R68,S68) -> 16.12212245 | T5: -0.05627650251 | U5: =IF($A$1>0,T68,U68) -> -1.563236181 | V5: 1.550712711 | W5: =IF($A$1>0,V68,W68) -> 43.07535308 | X5: -0.03623851074 | Y5: =IF($A$1>0,X68,Y68) -> -1.006625298 | AA5: 0.2834197085 | AB5: =IF($A$1>0,AA68,AB68) -> 7.872769679 | AC5: -0.8441475377 | AD5: =IF($A$1>0,AC68,AD68) -> -23.44854271 | AE5: 1.377971754 | AF5: =IF($A$1>0,AE68,AF68) -> 38.27699317 | AG5: -0.7239892124 | AH5: =IF($A$1>0,AG68,AH68) -> -20.11081146
A6: Kollekt.Name (SPF C Nr.) | B6: Felzen VRK | C6: Synox FK | D6: CPC40VRK | E6: Hewalex FK | H6: 300 | I6: 1.56583249 | J6: 28.99689796 | K6: 2.051380221 | L6: 37.98852261 | M6: 2.765173941 | N6: 51.20692483 | O6: 1.883309155 | P6: 34.87609547 | R6: 1.30147116 | S6: 24.10131778 | T6: 1.301478874 | U6: 24.10146064 | V6: 2.605619317 | W6: 48.25220957 | X6: 1.216489317 | Y6: 22.52757995 | AA6: 1.004494461 | AB6: 18.60174927 | AC6: 0.5136078392 | AD6: 9.511256281 | AE6: 2.43287836 | AF6: 45.05330296 | AG6: 0.5287386158 | AH6: 9.791455847
A7: η0 Abs. (z.B. 0,798) | B7: 0.734 | C7: 0.801 | D7: 0.64 | E7: 0.802 | H7: 400 | I7: 2.286907242 | J7: 31.76260058 | K7: 3.409135598 | L7: 47.34910553 | M7: 3.820080547 | N7: 53.05667426 | O7: 3.136036983 | P7: 43.55606921 | R7: 2.022545913 | S7: 28.09091545 | T7: 2.659234251 | U7: 36.93380905 | V7: 3.660525923 | W7: 50.84063781 | X7: 2.469217146 | Y7: 34.29468258 | AA7: 1.725569213 | AB7: 23.96623907 | AC7: 1.871363216 | AD7: 25.99115578 | AE7: 3.487784966 | AF7: 48.44145786 | AG7: 1.781466444 | AH7: 24.7425895
A8: a1 Abs. (z.B. 1,52) | B8: 1.529 | C8: 3.64 | D8: 0.688 | E8: 3.8 | F8: =COUNT(#REF!) -> 0 | H8: 500 | I8: 3.007981994 | J8: 33.42202216 | K8: 4.766890975 | L8: 52.96545528 | M8: 4.874987153 | N8: 54.16652392 | O8: 4.388764811 | P8: 48.76405346 | R8: 2.743620665 | S8: 30.48467405 | T8: 4.016989628 | U8: 44.63321809 | V8: 4.715432528 | W8: 52.39369476 | X8: 3.721944974 | Y8: 41.35494415 | AA8: 2.446643965 | AB8: 27.18493294 | AC8: 3.229118593 | AD8: 35.87909548 | AE8: 4.542691572 | AF8: 50.4743508 | AG8: 3.034194272 | AH8: 33.71326969
A9: a2 Abs. (z.B. 0,0143) | B9: 0.0166 | C9: 0.0112 | D9: 0.004 | E9: 0.0067 | H9: 600 | I9: 3.729056746 | J9: 34.52830321 | K9: 6.124646352 | L9: 56.70968844 | M9: 5.929893759 | N9: 54.90642369 | O9: 5.64149264 | P9: 52.23604296 | R9: 3.464695417 | S9: 32.08051312 | T9: 5.374745005 | U9: 49.76615745 | V9: 5.770339134 | W9: 53.42906606 | X9: 4.974672802 | Y9: 46.0617852 | AA9: 3.167718717 | AB9: 29.33072886 | AC9: 4.58687397 | AD9: 42.47105528 | AE9: 5.597598178 | AF9: 51.82961276 | AG9: 4.2869221 | AH9: 39.69372315
A10: Winkelfaktor (IAM) | B10: 1.37 | C10: 0.95 | D10: 0.96 | E10: 0.94 | H10: 700 | I10: 4.450131499 | J10: 35.31850396 | K10: 7.482401729 | L10: 59.3841407 | M10: 6.984800364 | N10: 55.43492353 | O10: 6.894220468 | P10: 54.71603546 | R10: 4.185770169 | S10: 33.22039817 | T10: 6.732500382 | U10: 53.43254271 | V10: 6.82524574 | W10: 54.16861699 | X10: 6.22740063 | Y10: 49.42381452 | AA10: 3.888793469 | AB10: 30.86344023 | AC10: 5.944629347 | AD10: 47.17959799 | AE10: 6.652504784 | AF10: 52.79765701 | AG10: 5.539649928 | AH10: 43.96547562
A11: max.Peak lt.Test | B11: 687 | C11: 1501 | E11: 1458 | H11: 800 | I11: 5.171206251 | J11: 35.91115452 | K11: 8.840157106 | L11: 61.3899799 | M11: 8.03970697 | N11: 55.83129841 | O11: 8.146948296 | P11: 56.57602983 | R11: 4.906844921 | S11: 34.07531195 | T11: 8.090255759 | U11: 56.18233166 | V11: 7.880152346 | W11: 54.72328018 | X11: 7.480128458 | Y11: 51.94533652 | AA11: 4.609868222 | AB11: 32.01297376 | AC11: 7.302384724 | AD11: 50.71100503 | AE11: 7.70741139 | AF11: 53.52369021 | AG11: 6.792377757 | AH11: 47.16928998
A12: Bruttoflächenrechner | C12: Länge | D12: Breite | E12: Brutto | H12: 900 | I12: 5.892281003 | J12: 36.37210496 | K12: 10.19791248 | L12: 62.95007705 | M12: 9.094613576 | N12: 56.13958998 | O12: 9.399676124 | P12: 58.02269212 | R12: 5.627919673 | S12: 34.7402449 | T12: 9.448011136 | U12: 58.32105639 | V12: 8.935058952 | W12: 55.15468489 | X12: 8.732856286 | Y12: 53.90652029 | AA12: 5.330942974 | AB12: 32.90705539 | AC12: 8.660140101 | AD12: 53.45765494 | AE12: 8.762317995 | AF12: 54.08838269 | AG12: 8.045105585 | AH12: 49.66114558
E13: =IF(AND(C13>0,D13>0),C13*D13,"") ->  | H13: 1000 | I13: 6.613355755 | J13: 36.74086531 | K13: 11.55566786 | L13: 64.19815477 | M13: 10.14952018 | N13: 56.38622323 | O13: 10.65240395 | P13: 59.18002196 | R13: 6.348994426 | S13: 35.27219125 | T13: 10.80576651 | U13: 60.03203618 | V13: 9.989965558 | W13: 55.49980866 | X13: 9.985584115 | Y13: 55.4754673 | AA13: 6.052017726 | AB13: 33.6223207 | AC13: 10.01789548 | AD13: 55.65497487 | AE13: 9.817224601 | AF13: 54.54013667 | AG13: 9.297833413 | AH13: 51.65463007
A14: =IF(F4<F5,"eine Bruttofl. fehlt ! (keine Bruttoberechnung möglich)","") ->  | H14: BRUTTOBERECHNUNG | I14: eingest. Fläche (m²) | L14: =E2 -> 18 | M14: eingest. Differenz (K) | P14: 30 | R14: eingest. Fläche (m²) | U14: =E2 -> 18 | V14: eingestellte Diff. (K) | Y14: 40 | AA14: eingest. Fläche (m²) | AD14: =E2 -> 18 | AE14: eingestellte Diff. (K) | AH14: 50
A16: =IF(F4>F5,"eine Abs.Fläche fehlt ! (keine Berechnung möglich)","") -> 
A18: =IF($O$1=1,"Winkelberechnung aktiv (mit eingetragenen IAM)","Direktbestrahlung aktiv (ohne IAM)") -> Direktbestrahlung aktiv (ohne IAM)
A20: =IF($A$1=1,"Daten n. Bruttofläche aktiv","Daten n. Aperturfläche aktiv") -> Daten n. Bruttofläche aktiv
A28: Hinweise
H30: ABSORBERBERECHNUNG
A35: Es können FK und VRK miteinander verglichen werden, die Daten müßen nach gleichen Flächenbezug eingetragen werden (mit Absorber oder Aperturfläche) und es muß die Modulbruttofläche eingetragen werden !
A40: Formelbasis (SPF) η(x) = η0 – a1 * x – a2 * G * x² mit x = (Tm – Ta) / G
A41: zu den SPF Kollektordaten (C Nr. eingeben und Factsheet pdf öffnen)
A42: Keymark zertifizierte Sonnenkollektoren
A43: Kollektortestberichte ITW Stuttgart
A44: Keymarkliste
A45: Fehler (auch Anregungen) bitte melden ! (hier klicken) | H45: NACH SPF METHODE
A46: www.solartirol.at
A48: es werden beim Diagramm unten links immer alle 4 Kollektoren mit gleicher Modulfl. (Brutto) gerechnet !
A51: Leistung b.gleicher Modulfl. u. fixer Diff. und fixer Strahlung (SPF)
A52: Modulfläche Brutto (m²) | E52: 2.095
A53: Fixstrahlung W/m² | E53: 1000
A54: Max.Peak Werte bei 1000W/m² Bestrahlung und Diff 0
A55: Soll max. Peak | B55: Kollektor | D55: pro m² | E55: pro Modul
A56: =IF(B11>0,B11,"") -> 687 | B56: =B6 -> Felzen VRK | D56: =IF(I86>0,(I86/$E$52)*1000,"") -> 400.5970845 | E56: =IF(D56>0,D56*B4,"") -> 687.024
A57: =IF(C11>0,C11,"") -> 1501 | B57: =C6 -> Synox FK | D57: =IF(K86>0,(K86/$E$52)*1000,"") -> 754.3085427 | E57: =IF(D57>0,D57*C4,"") -> 1501.074
A58: =IF(D11>0,D11,"") ->  | B58: =D6 -> CPC40VRK | D58: =IF(M86>0,(M86/$E$52)*1000,"") -> 586.0592255 | E58: =IF(D58>0,D58*D4,"") -> 2572.8
A59: =IF(E11>0,E11,"") -> 1458 | B59: =E6 -> Hewalex FK | D59: =IF(O86>0,(O86/$E$52)*1000,"") -> 695.9599045 | E59: =IF(D59>0,D59*E4,"") -> 1458.036 | I59: eingest. Fläche (m²) | L59: =E52 -> 2.095 | M59: eingestellte Strahlung (W/m²) | P59: =E53 -> 1000 | R59: Diagramm nach Wirkungsgrad (Brutto) | AA59: Diagramm nach Wirkungsgrad (nach Absorberfläche)
A60: Kollektordaten bei Solartirol | I60: Passwort " solartirol " | R60: Diagrammnachbildung der Daten von ITW Stuttgard (pdf)
A65: Bruttoberechnung | H65: Wirkungsgrad bei eingetragener Strahlung und Diff. (in%) | Q65: Wirkungsgrad bei eingetragener Strahlung und Diff. (in%) | Z65: Wirkungsgrad bei eingetragener Strahlung und Diff. (in%)
H66: W/m² | I66: Kol1 n. Brutto | J66: Kol1 n. Absorb. | K66: Kol2 n. Brutto | L66: Kol2 n. Absorb. | M66: Kol3 n. Brutto | N66: Kol3 n. Absorb. | O66: Kol4 n. Brutto | P66: Kol4 n. Absorb. | Q66: W/m² | R66: Kol1 n. Brutto | S66: Kol1 n. Absorb. | T66: Kol2 n. Brutto | U66: Kol2 n. Absorb. | V66: Kol3 n. Brutto | W66: Kol3 n. Absorb. | X66: Kol4 n. Brutto | Y66: Kol4 n. Absorb. | Z66: W/m² | AA66: Kol1 n. Brutto | AB66: Kol1 n. Absorb. | AC66: Kol2 n. Brutto | AD66: Kol2 n. Absorb. | AE66: Kol3 n. Brutto | AF66: Kol3 n. Absorb. | AG66: Kol4 n. Brutto | AH66: Kol4 n. Absorb.
A67: Strahlung 1 (W/m²) | H67: 100 | I67: =IF($B$92=1,(I94*100000)/(H67*$E$2),"") -> 6.871276968 | J67: =($B$101*$B$7-($B$8*D79)-(($B$9*H67*(D79*D79))))*100 -> 12.59 | K67: =IF($C$92=1,(K94*100000)/(H67*$E$2),"") -> -36.8961407 | L67: =($C$101*$C$7-($C$8*D79)-(($C$9*H67*(D79*D79))))*100 -> -39.18 | M67: =IF($D$92=1,(M94*100000)/(H67*$E$2),"") -> 36.40892938 | N67: =($D$101*$D$7-($D$8*D79)-(($D$9*H67*(D79*D79))))*100 -> 39.76 | O67: =IF($E$92=1,(O94*100000)/(H67*$E$2),"") -> -34.56369451 | P67: =($E$101*$E$7-($E$8*D79)-(($E$9*H67*(D79*D79))))*100 -> -39.83 | Q67: 100 | R67: =IF($B$92=1,(R94*100000)/(H67*$E$2),"") -> -7.815463557 | S67: =($B$101*$B$7-($B$8*AI67)-(($B$9*Q67*(AI67*AI67))))*100 -> -14.32 | T67: =IF($C$92=1,(T94*100000)/(H67*$E$2),"") -> -78.55732663 | U67: =($C$101*$C$7-($C$8*AI67)-(($C$9*Q67*(AI67*AI67))))*100 -> -83.42 | V67: =IF($D$92=1,(V94*100000)/(H67*$E$2),"") -> 27.5447836 | W67: =($D$101*$D$7-($D$8*AI67)-(($D$9*Q67*(AI67*AI67))))*100 -> 30.08 | X67: =IF($E$92=1,(X94*100000)/(H67*$E$2),"") -> -71.60924105 | Y67: =($E$101*$E$7-($E$8*AI67)-(($E$9*Q67*(AI67*AI67))))*100 -> -82.52 | Z67: 100 | AA67: =IF($B$92=1,(AA94*100000)/(H67*$E$2),"") -> -24.3141691 | AB67: =($B$101*$B$7-($B$8*AJ67)-(($B$9*Z67*(AJ67*AJ67))))*100 -> -44.55 | AC67: =IF($C$92=1,(AC94*100000)/(H67*$E$2),"") -> -122.3279397 | AD67: =($C$101*$C$7-($C$8*AJ67)-(($C$9*Z67*(AJ67*AJ67))))*100 -> -129.9 | AE67: =IF($D$92=1,(AE94*100000)/(H67*$E$2),"") -> 17.94806378 | AF67: =($D$101*$D$7-($D$8*AJ67)-(($D$9*Z67*(AJ67*AJ67))))*100 -> 19.6 | AG67: =IF($E$92=1,(AG94*100000)/(H67*$E$2),"") -> -109.8176134 | AH67: =($E$101*$E$7-($E$8*AJ67)-(($E$9*Z67*(AJ67*AJ67))))*100 -> -126.55 | AI67: =$Y$14/Q67 -> 0.4 | AJ67: =$AH$14/Z67 -> 0.5
A68: Strahlung 2 (W/m²) | H68: 200 | I68: =IF($B$92=1,(I95*100000)/(H68*$E$2),"") -> 23.46549271 | J68: 42.995 | K68: =IF($C$92=1,(K95*100000)/(H68*$E$2),"") -> 19.26735678 | L68: 20.46 | M68: =IF($D$92=1,(M95*100000)/(H68*$E$2),"") -> 47.50742597 | N68: 51.88 | O68: =IF($E$92=1,(O95*100000)/(H68*$E$2),"") -> 17.51614797 | P68: 20.185 | Q68: 200 | R68: =IF($B$92=1,(R95*100000)/(H68*$E$2),"") -> 16.12212245 | S68: 29.54 | T68: =IF($C$92=1,(T95*100000)/(H68*$E$2),"") -> -1.563236181 | U68: -1.66 | V68: =IF($D$92=1,(V95*100000)/(H68*$E$2),"") -> 43.07535308 | W68: 47.04 | X68: =IF($E$92=1,(X95*100000)/(H68*$E$2),"") -> -1.006625298 | Y68: -1.16 | Z68: 200 | AA68: =IF($B$92=1,(AA95*100000)/(H68*$E$2),"") -> 7.872769679 | AB68: 14.425 | AC68: =IF($C$92=1,(AC95*100000)/(H68*$E$2),"") -> -23.44854271 | AD68: -24.9 | AE68: =IF($D$92=1,(AE95*100000)/(H68*$E$2),"") -> 38.27699317 | AF68: 41.8 | AG68: =IF($E$92=1,(AG95*100000)/(H68*$E$2),"") -> -20.11081146 | AH68: -23.175 | AI68: 0.2 | AJ68: 0.25
A69: Strahlung 3 (W/m²) | H69: 300 | I69: 28.99689796 | J69: 53.13 | K69: 37.98852261 | L69: 40.34 | M69: 51.20692483 | N69: 55.92 | O69: 34.87609547 | P69: 40.19 | Q69: 300 | R69: 24.10131778 | S69: 44.16 | T69: 24.10146064 | U69: 25.59333333 | V69: 48.25220957 | W69: 52.69333333 | X69: 22.52757995 | Y69: 25.96 | Z69: 300 | AA69: 18.60174927 | AB69: 34.08333333 | AC69: 9.511256281 | AD69: 10.1 | AE69: 45.05330296 | AF69: 49.2 | AG69: 9.791455847 | AH69: 11.28333333 | AI69: 0.1333333333 | AJ69: 0.1666666667
A70: Strahlung 4 (W/m²) | H70: 400 | I70: 31.76260058 | J70: 58.1975 | K70: 47.34910553 | L70: 50.28 | M70: 53.05667426 | N70: 57.94 | O70: 43.55606921 | P70: 50.1925 | Q70: 400 | R70: 28.09091545 | S70: 51.47 | T70: 36.93380905 | U70: 39.22 | V70: 50.84063781 | W70: 55.52 | X70: 34.29468258 | Y70: 39.52 | Z70: 400 | AA70: 23.96623907 | AB70: 43.9125 | AC70: 25.99115578 | AD70: 27.6 | AE70: 48.44145786 | AF70: 52.9 | AG70: 24.7425895 | AH70: 28.5125 | AI70: 0.1 | AJ70: 0.125
A71: Strahlung 5 (W/m²) | H71: 500 | I71: 33.42202216 | J71: 61.238 | K71: 52.96545528 | L71: 56.244 | M71: 54.16652392 | N71: 59.152 | O71: 48.76405346 | P71: 56.194 | Q71: 500 | R71: 30.48467405 | S71: 55.856 | T71: 44.63321809 | U71: 47.396 | V71: 52.39369476 | W71: 57.216 | X71: 41.35494415 | Y71: 47.656 | Z71: 500 | AA71: 27.18493294 | AB71: 49.81 | AC71: 35.87909548 | AD71: 38.1 | AE71: 50.4743508 | AF71: 55.12 | AG71: 33.71326969 | AH71: 38.85 | AI71: 0.08 | AJ71: 0.1
A72: Strahlung 6 (W/m²) | H72: 600 | I72: 34.52830321 | J72: 63.265 | K72: 56.70968844 | L72: 60.22 | M72: 54.90642369 | N72: 59.96 | O72: 52.23604296 | P72: 60.195 | Q72: 600 | R72: 32.08051312 | S72: 58.78 | T72: 49.76615745 | U72: 52.84666667 | V72: 53.42906606 | W72: 58.34666667 | X72: 46.0617852 | Y72: 53.08 | Z72: 600 | AA72: 29.33072886 | AB72: 53.74166667 | AC72: 42.47105528 | AD72: 45.1 | AE72: 51.82961276 | AF72: 56.6 | AG72: 39.69372315 | AH72: 45.74166667 | AI72: 0.06666666667 | AJ72: 0.08333333333
A73: Strahlung 7 (W/m²) | H73: 700 | I73: 35.31850396 | J73: 64.71285714 | K73: 59.3841407 | L73: 63.06 | M73: 55.43492353 | N73: 60.53714286 | O73: 54.71603546 | P73: 63.05285714 | Q73: 700 | R73: 33.22039817 | S73: 60.86857143 | T73: 53.43254271 | U73: 56.74 | V73: 54.16861699 | W73: 59.15428571 | X73: 49.42381452 | Y73: 56.95428571 | Z73: 700 | AA73: 30.86344023 | AB73: 56.55 | AC73: 47.17959799 | AD73: 50.1 | AE73: 52.79765701 | AF73: 57.65714286 | AG73: 43.96547562 | AH73: 50.66428571 | AI73: 0.05714285714 | AJ73: 0.07142857143
A74: Strahlung 8 (W/m²) | H74: 800 | I74: 35.91115452 | J74: 65.79875 | K74: 61.3899799 | L74: 65.19 | M74: 55.83129841 | N74: 60.97 | O74: 56.57602983 | P74: 65.19625 | Q74: 800 | R74: 34.07531195 | S74: 62.435 | T74: 56.18233166 | U74: 59.66 | V74: 54.72328018 | W74: 59.76 | X74: 51.94533652 | Y74: 59.86 | Z74: 800 | AA74: 32.01297376 | AB74: 58.65625 | AC74: 50.71100503 | AD74: 53.85 | AE74: 53.52369021 | AF74: 58.45 | AG74: 47.16928998 | AH74: 54.35625 | AI74: 0.05 | AJ74: 0.0625
A75: Strahlung 9 (W/m²) | H75: 900 | I75: 36.37210496 | J75: 66.64333333 | K75: 62.95007705 | L75: 66.84666667 | M75: 56.13958998 | N75: 61.30666667 | O75: 58.02269212 | P75: 66.86333333 | Q75: 900 | R75: 34.7402449 | S75: 63.65333333 | T75: 58.32105639 | U75: 61.93111111 | V75: 55.15468489 | W75: 60.23111111 | X75: 53.90652029 | Y75: 62.12 | Z75: 900 | AA75: 32.90705539 | AB75: 60.29444444 | AC75: 53.45765494 | AD75: 56.76666667 | AE75: 54.08838269 | AF75: 59.06666667 | AG75: 49.66114558 | AH75: 57.22777778 | AI75: 0.04444444444 | AJ75: 0.05555555556
A76: Strahlung 10 (W/m²) | H76: 1000 | I76: 36.74086531 | J76: 67.319 | K76: 64.19815477 | L76: 68.172 | M76: 56.38622323 | N76: 61.576 | O76: 59.18002196 | P76: 68.197 | Q76: 1000 | R76: 35.27219125 | S76: 64.628 | T76: 60.03203618 | U76: 63.748 | V76: 55.49980866 | W76: 60.608 | X76: 55.4754673 | Y76: 63.928 | Z76: 1000 | AA76: 33.6223207 | AB76: 61.605 | AC76: 55.65497487 | AD76: 59.1 | AE76: 54.54013667 | AF76: 59.56 | AG76: 51.65463007 | AH76: 59.525 | AI76: 0.04 | AJ76: 0.05
A77: Berechnung nach SPF Diagramm | H77: Wirkungsgrad nach SPF bei eingetragener Fixstrahlung und Differenz (in %)
H78: Diff. | I78: Br.(%) | J78: Abs. (%) | K78: Br.(%) | L78: Abs. (%) | M78: Br.(%) | N78: Abs. (%) | O78: Br.(%) | P78: Abs. (%)
D79: =$P$14/H67 -> 0.3 | E79: =H79/$E$53 -> 0 | H79: 0 | I79: =IF($B$92=1,(I86*100000)/($E$53*$E$52),"") -> 40.05970845 | J79: =IF($B$7>0,($B$101*$B$7-($B$8*E79)-(($B$9*$E$53*(E79*E79))))*100,"") -> 73.4 | K79: =IF($C$92=1,(K86*100000)/($E$53*$E$52),"") -> 75.43085427 | L79: =IF($C$7>0,($C$101*$C$7-($C$8*E79)-(($C$9*$E$53*(E79*E79))))*100,"") -> 80.1 | M79: =IF($D$92=1,(M86*100000)/($E$53*$E$52),"") -> 58.60592255 | N79: =IF($D$7>0,($D$101*$D$7-($D$8*E79)-(($D$9*$E$53*(E79*E79))))*100,"") -> 64 | O79: =IF($E$92=1,(O86*100000)/($E$53*$E$52),"") -> 69.59599045 | P79: =IF($E$7>0,($E$101*$E$7-($E$8*E79)-(($E$9*$E$53*(E79*E79))))*100,"") -> 80.2
D80: 0.15 | E80: 0.02 | H80: 20 | I80: =IF($B$92=1,(I87*100000)/($E$53*$E$52),"") -> 38.02834286 | J80: 69.678 | K80: =IF($C$92=1,(K87*100000)/($E$53*$E$52),"") -> 68.15333065 | L80: 72.372 | M80: =IF($D$92=1,(M87*100000)/($E$53*$E$52),"") -> 57.19938041 | N80: 62.464 | O80: =IF($E$92=1,(O87*100000)/($E$53*$E$52),"") -> 62.76829403 | P80: 72.332
D81: 0.1 | E81: 0.04 | H81: 40 | I81: 35.27219125 | J81: 64.628 | K81: 60.03203618 | L81: 63.748 | M81: 55.49980866 | N81: 60.608 | O81: 55.4754673 | P81: 63.928
D82: 0.075 | E82: 0.06 | H82: 60 | I82: 31.79125364 | J82: 58.25 | K82: 51.06697085 | L82: 54.228 | M82: 53.50720729 | N82: 58.432 | O82: 47.71751026 | P82: 54.988
D83: 0.06 | E83: 0.08 | H83: 80 | I83: 27.58553003 | J83: 50.544 | K83: 41.25813467 | L83: 43.812 | M83: 51.22157631 | N83: 55.936 | O83: 39.49442291 | P83: 45.512
D84: 0.05 | E84: 0.1 | H84: 100 | I84: 22.65502041 | J84: 41.51 | K84: 30.60552764 | L84: 32.5 | M84: 48.64291572 | N84: 53.12 | O84: 30.80620525 | P84: 35.5
D85: 0.04285714286 | H85: Diff. | I85: =B6 -> Felzen VRK | J85: kW | K85: =C6 -> Synox FK | L85: kW | M85: =D6 -> CPC40VRK | N85: kW | O85: =E6 -> Hewalex FK | P85: kW
D86: 0.0375 | H86: 0 | I86: =J86/$B$4*$B$5 -> 0.8392508921 | J86: =IF($B$7>0,$E$53*$E$52*(J79/100)/1000,"") -> 1.53773 | K86: =L86/$C$4*$C$5 -> 1.580276397 | L86: =IF($C$7>0,$E$53*$E$52*(L79/100)/1000,"") -> 1.678095 | M86: =N86/$D$4*$D$5 -> 1.227794077 | N86: =IF($D$7>0,$E$53*$E$52*(N79/100)/1000,"") -> 1.3408 | O86: =P86/$E$4*$E$5 -> 1.458036 | P86: =IF($E$7>0,$E$53*$E$52*(P79/100)/1000,"") -> 1.68019
D87: 0.03333333333 | H87: 20 | I87: 0.7966937829 | J87: 1.4597541 | K87: 1.427812277 | L87: 1.5161934 | M87: 1.19832702 | N87: 1.3086208 | O87: 1.31499576 | P87: 1.5153554
D88: 0.03 | H88: 40 | I88: 0.7389524068 | J88: 1.3539566 | K88: 1.257671158 | L88: 1.3355206 | M88: 1.162720991 | N88: 1.2697376 | O88: 1.16221104 | P88: 1.3392916
H89: 60 | I89: 0.6660267638 | J89: 1.2203375 | K89: 1.069853039 | L89: 1.1360766 | M89: 1.120975993 | N89: 1.2241504 | O89: 0.99968184 | P89: 1.1519986
H90: 80 | I90: 0.5779168541 | J90: 1.0588968 | K90: 0.8643579214 | L90: 0.9178614 | M90: 1.073092024 | N90: 1.1718592 | O90: 0.82740816 | P90: 0.9534764
H91: 100 | I91: =J91/$B$4*$B$5 -> 0.4746226776 | J91: 0.8696345 | K91: =L91/$C$4*$C$5 -> 0.641185804 | L91: 0.680875 | M91: =N91/$D$4*$D$5 -> 1.019069084 | N91: 1.112864 | O91: =P91/$E$4*$E$5 -> 0.64539 | P91: 0.743725
A92: Br.& Absorberfl.vorh. | B92: =IF(B3>0,1,0) -> 1 | C92: 1 | D92: 1 | E92: 1 | H92: Str. (W/m²) | I92: Gesamtleistung nach eingetr. Strahlung und Diff. der ges. einget. Modulfl. (in kW) | R92: Gesamtleistung nach eingetr. Strahlung und Diff. der ges. einget. Modulfl. (in kW) | AA92: Gesamtleistung nach eingetr. Strahlung und Diff. der ges. einget. Modulfl. (in kW)
A93: Modulfl. (Br. m²) | B93: 1 | C93: 1 | D93: 1 | E93: 1 | I93: =$B$6 -> Felzen VRK | J93: Absorber | K93: =$C$6 -> Synox FK | L93: Absorber | M93: =$D$6 -> CPC40VRK | N93: Absorber | O93: =$E$6 -> Hewalex FK | P93: Absorber | R93: =$B$6 -> Felzen VRK | S93: Absorber | T93: =$C$6 -> Synox FK | U93: Absorber | V93: =$D$6 -> CPC40VRK | W93: Absorber | X93: =$E$6 -> Hewalex FK | Y93: Absorber | AA93: =$B$6 -> Felzen VRK | AB93: Absorber | AC93: =$C$6 -> Synox FK | AD93: Absorber | AE93: =$D$6 -> CPC40VRK | AF93: Absorber | AG93: =$E$6 -> Hewalex FK | AH93: Absorber
A94: Absorberfläche (m²) | B94: 1 | C94: 1 | D94: 1 | E94: 1 | H94: 100 | I94: =J94/$B$4*$B$5 -> 0.1236829854 | J94: =($H$94*(J67/100000))*$E$2 -> 0.22662 | K94: =L94/$C$4*$C$5 -> -0.6641305327 | L94: -0.70524 | M94: =N94/$D$4*$D$5 -> 0.6553607289 | N94: 0.71568 | O94: =P94/$E$4*$E$5 -> -0.6221465012 | P94: -0.71694 | Q94: 1.8 | R94: =S94/$B$4*$B$5 -> -0.140678344 | S94: -0.25776 | T94: =U94/$C$4*$C$5 -> -1.414031879 | U94: -1.50156 | V94: =W94/$D$4*$D$5 -> 0.4958061048 | W94: 0.54144 | X94: =Y94/$E$4*$E$5 -> -1.288966339 | Y94: -1.48536 | Z94: 1.8 | AA94: =AB94/$B$4*$B$5 -> -0.4376550437 | AB94: -0.8019 | AC94: =AD94/$C$4*$C$5 -> -2.201902915 | AD94: -2.3382 | AE94: =AF94/$D$4*$D$5 -> 0.3230651481 | AF94: 0.3528 | AG94: =AH94/$E$4*$E$5 -> -1.976717041 | AH94: -2.2779
A95: IAM | B95: =IF(B101>0,1,0) -> 1 | C95: =IF(C101>0,1,0) -> 1 | D95: =IF(D101>0,1,0) -> 1 | E95: =IF(E101>0,1,0) -> 1 | H95: 200 | I95: 0.8447577376 | J95: =($H$95*(J68/100000))*$E$2 -> 1.54782 | K95: 0.6936248442 | L95: 0.73656 | M95: 1.710267335 | N95: 1.86768 | O95: 0.630581327 | P95: 0.72666 | Q95: 7.2 | R95: 0.5803964082 | S95: 1.06344 | T95: -0.05627650251 | U95: -0.05976 | V95: 1.550712711 | W95: 1.69344 | X95: -0.03623851074 | Y95: -0.04176 | Z95: 7.2 | AA95: 0.2834197085 | AB95: 0.5193 | AC95: -0.8441475377 | AD95: -0.8964 | AE95: 1.377971754 | AF95: 1.5048 | AG95: -0.7239892124 | AH95: -0.8343
A96: η0 Abs. (z.B. 0,798) | B96: =IF(B7>0,1,0) -> 1 | C96: 1 | D96: 1 | E96: 1 | H96: 300 | I96: 1.56583249 | J96: =($H$96*(J69/100000))*$E$2 -> 2.86902 | K96: 2.051380221 | L96: 2.17836 | M96: 2.765173941 | N96: 3.01968 | O96: 1.883309155 | P96: 2.17026 | Q96: 16.2 | R96: 1.30147116 | S96: 2.38464 | T96: 1.301478874 | U96: 1.38204 | V96: 2.605619317 | W96: 2.84544 | X96: 1.216489317 | Y96: 1.40184 | Z96: 16.2 | AA96: 1.004494461 | AB96: 1.8405 | AC96: 0.5136078392 | AD96: 0.5454 | AE96: 2.43287836 | AF96: 2.6568 | AG96: 0.5287386158 | AH96: 0.6093
A97: a1 Abs. (z.B. 1,52) | B97: 1 | C97: 1 | D97: 1 | E97: 1 | H97: 400 | I97: 2.286907242 | J97: =($H$97*(J70/100000))*$E$2 -> 4.19022 | K97: 3.409135598 | L97: 3.62016 | M97: 3.820080547 | N97: 4.17168 | O97: 3.136036983 | P97: 3.61386 | Q97: 28.8 | R97: 2.022545913 | S97: 3.70584 | T97: 2.659234251 | U97: 2.82384 | V97: 3.660525923 | W97: 3.99744 | X97: 2.469217146 | Y97: 2.84544 | Z97: 28.8 | AA97: 1.725569213 | AB97: 3.1617 | AC97: 1.871363216 | AD97: 1.9872 | AE97: 3.487784966 | AF97: 3.8088 | AG97: 1.781466444 | AH97: 2.0529
A98: a2 Abs. (z.B. 0,0143) | B98: 1 | C98: 1 | D98: 1 | E98: 1 | H98: 500 | I98: 3.007981994 | J98: =($H$98*(J71/100000))*$E$2 -> 5.51142 | K98: 4.766890975 | L98: 5.06196 | M98: 4.874987153 | N98: 5.32368 | O98: 4.388764811 | P98: 5.05746 | Q98: 45 | R98: 2.743620665 | S98: 5.02704 | T98: 4.016989628 | U98: 4.26564 | V98: 4.715432528 | W98: 5.14944 | X98: 3.721944974 | Y98: 4.28904 | Z98: 45 | AA98: 2.446643965 | AB98: 4.4829 | AC98: 3.229118593 | AD98: 3.429 | AE98: 4.542691572 | AF98: 4.9608 | AG98: 3.034194272 | AH98: 3.4965
A99: Absorberaktivierung | B99: =IF(B98+B97+B96+B94+B93=5,1,0) -> 1 | C99: =IF(C98+C97+C96+C94+C93=5,1,0) -> 1 | D99: =IF(D98+D97+D96+D94+D93=5,1,0) -> 1 | E99: =IF(E98+E97+E96+E94+E93=5,1,0) -> 1 | H99: 600 | I99: 3.729056746 | J99: =($H$99*(J72/100000))*$E$2 -> 6.83262 | K99: 6.124646352 | L99: 6.50376 | M99: 5.929893759 | N99: 6.47568 | O99: 5.64149264 | P99: 6.50106 | Q99: 64.8 | R99: 3.464695417 | S99: 6.34824 | T99: 5.374745005 | U99: 5.70744 | V99: 5.770339134 | W99: 6.30144 | X99: 4.974672802 | Y99: 5.73264 | Z99: 64.8 | AA99: 3.167718717 | AB99: 5.8041 | AC99: 4.58687397 | AD99: 4.8708 | AE99: 5.597598178 | AF99: 6.1128 | AG99: 4.2869221 | AH99: 4.9401
H100: 700 | I100: 4.450131499 | J100: =($H$100*(J73/100000))*$E$2 -> 8.15382 | K100: 7.482401729 | L100: 7.94556 | M100: 6.984800364 | N100: 7.62768 | O100: 6.894220468 | P100: 7.94466 | Q100: 88.2 | R100: 4.185770169 | S100: 7.66944 | T100: 6.732500382 | U100: 7.14924 | V100: 6.82524574 | W100: 7.45344 | X100: 6.22740063 | Y100: 7.17624 | Z100: 88.2 | AA100: 3.888793469 | AB100: 7.1253 | AC100: 5.944629347 | AD100: 6.3126 | AE100: 6.652504784 | AF100: 7.2648 | AG100: 5.539649928 | AH100: 6.3837
A101: IAM | B101: =IF(OR($O$1=0,B10<0.1),1,B10) -> 1 | C101: =IF(OR($O$1=0,C10<0.1),1,C10) -> 1 | D101: 1 | E101: 1 | H101: 800 | I101: 5.171206251 | J101: =($H$101*(J74/100000))*$E$2 -> 9.47502 | K101: 8.840157106 | L101: 9.38736 | M101: 8.03970697 | N101: 8.77968 | O101: 8.146948296 | P101: 9.38826 | Q101: 115.2 | R101: 4.906844921 | S101: 8.99064 | T101: 8.090255759 | U101: 8.59104 | V101: 7.880152346 | W101: 8.60544 | X101: 7.480128458 | Y101: 8.61984 | Z101: 115.2 | AA101: 4.609868222 | AB101: 8.4465 | AC101: 7.302384724 | AD101: 7.7544 | AE101: 7.70741139 | AF101: 8.4168 | AG101: 6.792377757 | AH101: 7.8273
H102: 900 | I102: 5.892281003 | J102: =($H$102*(J75/100000))*$E$2 -> 10.79622 | K102: 10.19791248 | L102: 10.82916 | M102: 9.094613576 | N102: 9.93168 | O102: 9.399676124 | P102: 10.83186 | Q102: 145.8 | R102: 5.627919673 | S102: 10.31184 | T102: 9.448011136 | U102: 10.03284 | V102: 8.935058952 | W102: 9.75744 | X102: 8.732856286 | Y102: 10.06344 | Z102: 145.8 | AA102: 5.330942974 | AB102: 9.7677 | AC102: 8.660140101 | AD102: 9.1962 | AE102: 8.762317995 | AF102: 9.5688 | AG102: 8.045105585 | AH102: 9.2709
H103: 1000 | I103: =J103/$B$4*$B$5 -> 6.613355755 | J103: =($H$103*(J76/100000))*$E$2 -> 12.11742 | K103: =L103/$C$4*$C$5 -> 11.55566786 | L103: =($H$103*(L76/100000))*$E$2 -> 12.27096 | M103: =N103/$D$4*$D$5 -> 10.14952018 | N103: 11.08368 | O103: =P103/$E$4*$E$5 -> 10.65240395 | P103: 12.27546 | Q103: 180 | R103: =S103/$B$4*$B$5 -> 6.348994426 | S103: 11.63304 | T103: =U103/$C$4*$C$5 -> 10.80576651 | U103: 11.47464 | V103: =W103/$D$4*$D$5 -> 9.989965558 | W103: 10.90944 | X103: =Y103/$E$4*$E$5 -> 9.985584115 | Y103: 11.50704 | Z103: 180 | AA103: =AB103/$B$4*$B$5 -> 6.052017726 | AB103: 11.0889 | AC103: =AD103/$C$4*$C$5 -> 10.01789548 | AD103: 10.638 | AE103: =AF103/$D$4*$D$5 -> 9.817224601 | AF103: 10.7208 | AG103: =AH103/$E$4*$E$5 -> 9.297833413 | AH103: 10.7145

Sheet Änderungen
A1: Version | B1: Änderung
A2: V8 | B2: erste Testversion
A3: V9 | B3: falsche Anzeige der Modulfläche in K44 behoben (wenn keine Gesamtbruttofläche eingetragen ist)
A4: V11 | B4: Anzeige des Aperturanteils in %
A5: V13 | B5: zusätzliche Wirkungsgrad Diagrame (ITW Vergleich) / max. Peak Anzeige pro m²
A6: V15 | B6: Darstellung der Bruttodiagramme und max. Peak auch wenn nur Absorberdaten vorhanden sind (Brutto und Absorber bzw. Aperturfläche müßen aber vorhanden sein)
A7: V16 | B7: Links zu Kollektortests (auch Keymark geprüfte Kollektoren ) eingefügt, Link zu meiner Mail korrigiert, Eingabe max. Peak nach oben verschoben !
A8: V16 | B8: Bruttoflächenrechner eingefügt
A9: V17 | B9: IAM kann immer eingetragen werden , umschalten der Winkelberechnung (aus/ein) mit IAM über neue Button Winkelberechnung ein oder aus (oben)
A10: V17 | B10: Keymark Hyperlink eingefügt

Sheet Anleitung
